bitfinex/quotes_ETHUSD_20240827
["timestamp","ask_amount","ask_price","bid_price","bid_amount"]
[1724756709004,17.68237061,2635.9,2634.9,2.481]
[1724756709005,1.14916878,2635.9,2634.9,2.481]
[1724756709222,3.07584108,2635.8,2634.9,2.481]
[1724756709522,3.79413,2635.7,2635.0,0.2481]
[1724756709736,3.7949,2635.2,2634.9,2.481]
[1724756709944,7.58979,2635.2,2634.9,2.481]
[1724756710130,5.68772939,2635.8,2634.9,2.481]
[1724756710333,3.79428,2635.6,2635.0,0.2481]
[1724756710625,7.58859,2635.6,2635.0,0.07588853]
[1724756710838,3.79428,2635.6,2635.0,0.07588853]
[1724756711036,6.79397,2635.8,2635.2,2.3798]
[1724756711263,3.79462,2635.4,2635.2,2.3798]
[1724756711549,3.79463,2635.3,2635.2,2.3798]
[1724756712213,3.79463,2635.3,2634.4,2.3314]
[1724756712214,3.79518,2635.0,2634.4,2.3314]
[1724756712416,3.79518,2635.0,2634.4,2.97944073]
[1724756712417,3.79531,2634.9,2634.4,2.97944073]
[1724756713823,6.79484,2635.2,2634.4,2.97944073]
[1724756714018,3.0,2635.2,2634.6,2.3561]
[1724756714343,3.0,2635.3,2634.8,2.3561]
[1724756714527,3.0,2635.3,2634.8,2.43199599]
[1724756714741,3.0,2635.3,2634.8,2.3561]
[1724756715070,6.79463,2635.3,2634.9,0.07589593]
[1724756715460,3.79477,2635.2,2634.8,3.38615973]
[1724756715635,3.79477,2635.2,2634.8,2.3561]
[1724756715836,3.79493,2635.1,2634.8,2.3561]
[1724756716369,3.0,2635.3,2634.8,2.3561]
[1724756716672,3.0,2635.3,2634.9,0.31150712]
[1724756716973,3.0,2635.3,2634.9,0.23561]
[1724756717291,6.79467,2635.3,2634.9,0.23561]
[1724756717468,3.0,2635.3,2634.9,0.23561]
[1724756717979,4.94358878,2635.5,2635.0,0.07589095]
[1724756718277,3.79494,2635.1,2634.8,2.3561]
[1724756718481,3.79509,2635.0,2634.8,2.3561]
[1724756719477,3.7949,2635.2,2634.8,2.3561]
[1724756719645,3.7949,2635.2,2634.8,2.59171]
[1724756720644,3.79473,2635.3,2634.8,2.59171]
[1724756720878,4.94358878,2635.5,2634.9,0.07589573]
[1724756721081,4.94358878,2635.5,2634.9,0.3426563]
[1724756721256,4.94358878,2635.5,2635.0,2.3337]
[1724756721462,3.79456,2635.4,2635.0,2.3337]
[1724756721987,4.94358878,2635.5,2635.1,0.07588984]
[1724756722891,3.79442,2635.5,2635.1,0.07588984]
[1724756723390,3.07584108,2635.4,2634.2,2.3329]
[1724756723550,3.87039108,2635.4,2634.2,2.3329]
[1724756723755,3.79607,2634.3,2634.2,2.3329]
[1724756724493,7.59214,2634.3,2634.2,2.3329]
[1724756724659,10.59214,2634.3,2634.2,2.3329]
[1724756725360,3.0,2634.3,2634.2,2.3329]
[1724756725561,3.79594,2634.4,2634.2,2.3329]
[1724756725904,6.87148108,2634.7,2634.2,2.56619]
[1724756726062,3.79572,2634.6,2634.2,2.56619]
[1724756726261,3.7958,2634.5,2634.2,2.56619]
[1724756726463,7.59126,2634.7,2634.2,2.56619]
[1724756726658,3.79562,2634.7,2634.3,0.33253265]
[1724756726971,3.7953,2634.9,2634.3,0.33253265]
[1724756727175,3.79513,2635.0,2634.4,2.3707]
[1724756727377,3.79521,2634.9,2634.5,0.72582175]
[1724756727601,3.79498,2635.1,2634.6,2.3707]
[1724756728014,3.79473,2635.3,2634.6,2.3707]
[1724756728015,8.73863878,2635.3,2634.6,2.3707]
[1724756728166,3.79493,2635.1,2634.7,0.3129671]
[1724756728480,3.79493,2635.1,2634.8,0.0758971]
[1724756728803,3.79493,2635.1,2634.7,0.23707]
[1724756729186,7.58945,2635.3,2634.8,0.07589711]
[1724756729388,3.79456,2635.4,2634.9,2.2939]
[1724756729701,3.79443,2635.5,2635.0,0.31286933]
[1724756730664,7.58889,2635.5,2635.0,0.31286933]
[1724756730890,3.79457,2635.4,2635.0,0.23697971]
[1724756731205,3.79457,2635.4,2634.9,2.2939]
[1724756731766,1.14916878,2635.6,2635.1,6.16131]
[1724756732004,0.39671001,2635.7,2635.3,2.3664]
[1724756732198,0.39671001,2635.7,2635.4,0.07587825]
[1724756732927,5.33994879,2635.7,2635.4,0.07587825]
[1724756733202,5.33994879,2635.7,2635.3,2.3664]
[1724756733763,4.19078001,2635.7,2635.3,2.3664]
[1724756733969,4.19078001,2635.7,2635.3,3.08638505]
[1724756734563,5.33994879,2635.7,2635.3,3.08638505]
[1724756734971,1.54587879,2635.7,2635.3,3.08638505]
[1724756735181,0.39671001,2635.7,2635.3,3.08638505]
[1724756735382,1.54587879,2635.7,2635.3,3.08638505]
[1724756735580,1.54587879,2635.7,2635.4,0.0758784]
[1724756736573,1.54587879,2635.7,2635.4,0.4959668]
[1724756736790,1.54587879,2635.7,2635.5,2.4402]
[1724756736791,0.39671001,2635.7,2635.5,2.4402]
[1724756737028,1.54587879,2635.7,2635.5,2.4402]
[1724756737304,5.33994879,2635.7,2635.5,2.4402]
[1724756738510,9.12696061,2635.6,2635.5,2.4402]
[1724756739204,1.53856061,2635.6,2635.5,2.4402]
[1724756739406,1.93527062,2635.7,2635.5,2.4402]
[1724756739708,1.93527062,2635.7,2635.5,2.68422]
[1724756739709,1.17395948,2635.6,2635.5,2.68422]
[1724756739951,1.57066949,2635.7,2635.5,2.68422]
[1724756740246,1.17395948,2635.6,2635.5,2.68422]
[1724756740620,1.17395948,2635.6,2635.5,2.4402]
[1724756741029,5.33276061,2635.6,2635.5,2.4402]
[1724756741505,5.36002462,2635.6,2635.5,2.4402]
[1724756741914,1.56582462,2635.6,2635.5,2.4402]
[1724756742910,1.1744621,2635.6,2635.5,2.4402]
[1724756743140,1.1744621,2635.6,2635.5,2.69180805]
[1724756743646,1.1744621,2635.8,2635.6,2.4589]
[1724756743819,1.1744621,2635.9,2635.7,0.07587042]
[1724756744004,1.1744621,2635.9,2635.7,0.35450855]
[1724756744208,1.1744621,2635.9,2635.8,2.38496937]
[1724756744401,1.1744621,2636.0,2635.8,2.38496937]
[1724756744627,1.1744621,2636.0,2635.9,0.72161885]
[1724756744838,1.1744621,2636.2,2635.9,3.03071885]
[1724756745024,1.1744621,2636.2,2636.1,2.3091]
[1724756745233,1.56582462,2636.2,2636.1,2.3091]
[1724756745431,5.75139302,2636.3,2636.1,2.3091]
[1724756745600,1.56678296,2636.2,2636.1,2.3091]
[1724756746069,1.56678296,2636.3,2636.1,2.54001]
[1724756746341,1.17532042,2636.4,2636.1,2.54001]
[1724756746517,1.17532042,2636.5,2636.3,2.3656]
[1724756746715,1.17532042,2636.4,2636.3,2.3656]
[1724756747526,1.56678296,2636.5,2636.3,2.3656]
[1724756747527,1.17532042,2636.5,2636.3,2.3656]
[1724756747729,1.17532042,2636.5,2636.3,2.6506511]
[1724756748317,1.17532042,2636.5,2636.3,2.3656]
[1724756749550,1.17532042,2636.6,2636.3,2.3656]
[1724756751448,4.96796042,2636.7,2636.3,2.3656]
[1724756752307,4.96796042,2636.7,2636.3,3.004598]
[1724756752514,4.96796042,2636.7,2636.3,2.3656]
[1724756752915,3.79343,2636.2,2635.9,2.4169]
[1724756753141,8.76165042,2636.4,2635.9,2.4169]
[1724756753353,3.79314,2636.4,2635.9,2.65859]
[1724756753526,3.79313,2636.4,2635.9,2.65859]
[1724756753722,3.79313,2636.4,2635.9,2.4169]
[1724756753723,3.79359,2636.1,2635.9,2.4169]
[1724756754012,7.58717,2636.1,2635.4,3.79447]
[1724756754217,1.17532042,2635.9,2635.2,2.2773]
[1724756754563,7.58915,2635.4,2635.2,2.2773]
[1724756754716,3.79457,2635.4,2635.2,2.2773]
[1724756755156,7.66510108,2635.3,2635.2,2.2773]
[1724756755359,3.79463,2635.3,2634.5,2.4354]
[1724756755651,3.79479,2635.2,2634.5,6.23106]
[1724756755853,3.79463,2635.3,2634.5,6.23106]
[1724756755854,3.79463,2635.3,2634.6,0.623106]
[1724756756064,3.79463,2635.3,2634.7,2.2805]
[1724756756264,0.07584108,2635.4,2634.7,2.2805]
[1724756756422,0.07584108,2635.4,2634.8,0.2903606]
[1724756756771,1.17532042,2635.5,2635.0,6.07547]
[1724756756952,4.17532042,2635.6,2635.1,0.07588697]
[1724756757262,3.0,2635.6,2635.1,0.07588697]
[1724756757623,6.79422,2635.6,2635.1,0.07588697]
[1724756758025,1.17532042,2635.7,2635.2,2.4676]
[1724756758322,3.79417,2635.7,2635.2,2.4676]
[1724756758527,3.79421,2635.6,2635.2,2.4676]
[1724756758757,3.79463,2635.3,2635.2,2.4676]
[1724756759165,4.96985042,2635.4,2635.2,2.4676]
[1724756759367,1.17532042,2635.5,2635.2,2.4676]
[1724756759785,1.17532042,2635.6,2635.2,2.4676]
[1724756759995,4.96948042,2635.7,2635.3,0.07588429]
[1724756760212,3.79435,2635.5,2635.2,2.4676]
[1724756760364,3.79463,2635.3,2635.2,2.4676]
[1724756760564,7.66510108,2635.3,2635.2,2.4676]
[1724756760906,7.58926,2635.3,2635.2,2.4676]
[1724756761063,8.76458042,2635.3,2635.2,2.4676]
[1724756761970,3.79521,2634.9,2634.4,2.4576]
[1724756762169,3.79509,2635.0,2634.4,2.4576]
[1724756762557,3.79528,2634.9,2634.4,2.4576]
[1724756762769,3.79528,2634.9,2634.4,3.462595]
[1724756763002,3.79509,2635.0,2634.4,3.462595]
[1724756763159,4.9657707,2635.0,2634.4,3.462595]
[1724756763702,7.59029,2635.0,2634.4,3.462595]
[1724756763853,4.9657707,2635.0,2634.4,3.462595]
[1724756764053,8.7609207,2635.0,2634.5,0.7258665]
[1724756764266,1.1706807,2635.0,2634.5,0.7258665]
[1724756764459,1.1706807,2635.1,2634.6,2.2962]
[1724756764658,1.1706807,2635.1,2634.0,3.79644]
[1724756764659,1.1706807,2635.2,2634.7,4.22490922]
[1724756764924,1.1706807,2635.3,2634.9,2.3524]
[1724756765098,4.1706807,2635.3,2634.9,2.3524]
[1724756765408,3.79477,2635.2,2634.9,2.3524]
[1724756766096,4.9654507,2635.2,2634.9,2.3524]
[1724756766339,1.1706807,2635.2,2634.9,2.3524]
[1724756766538,1.1706807,2635.2,2635.0,3.87092387]
[1724756766712,1.1706807,2635.5,2635.2,3.79474]
[1724756767041,5.7466167,2635.8,2635.0,8.01993115]
[1724756767042,5.36145905,2635.8,2635.4,2.3917]
[1724756767248,1.1706807,2635.6,2635.4,2.3917]
[1724756767415,5.75756131,2635.8,2635.4,2.3917]
[1724756767416,1.1706807,2635.7,2635.4,2.3917]
[1724756768047,5.7463967,2636.0,2635.4,2.3917]
[1724756768048,1.1706807,2635.9,2635.4,6.60534421]
[1724756768241,1.1706807,2635.9,2635.5,2.4244]
[1724756768398,1.1706807,2635.9,2635.6,0.07587288]
[1724756768604,1.1706807,2636.1,2635.6,0.74726459]
[1724756768843,4.9643907,2636.0,2635.6,0.07587288]
[1724756769741,1.1706807,2636.0,2635.7,2.367]
[1724756769913,1.56678296,2636.1,2635.7,2.367]
[1724756769914,1.1706807,2636.2,2635.8,0.32015348]
[1724756770112,1.1706807,2636.2,2635.9,2.4616]
[1724756770619,1.56678296,2636.3,2636.0,2.4616]
[1724756770620,1.1706807,2636.3,2636.0,2.4616]
[1724756770815,3.79348,2636.1,2636.0,2.4616]
[1724756771018,4.9641607,2636.1,2636.0,2.4616]
[1724756771237,9.15374296,2636.1,2636.0,2.4616]
[1724756771403,9.54057078,2636.1,2636.0,2.4616]
[1724756771812,7.58696,2636.1,2636.0,2.4616]
[1724756772019,9.54057078,2636.1,2636.0,2.4616]
[1724756772914,5.74709078,2636.1,2636.0,2.4616]
[1724756773245,1.95361078,2636.1,2636.0,2.4616]
[1724756773772,1.95361078,2636.1,2636.0,6.50138]
[1724756773773,1.17457031,2636.1,2636.0,6.50138]
[1724756774052,1.17457031,2636.4,2636.2,6.19973]
[1724756774224,1.17457031,2636.4,2636.3,0.69582791]
[1724756774420,1.17457031,2636.5,2636.3,0.69582791]
[1724756774628,1.17457031,2636.5,2636.3,0.07585491]
[1724756774830,1.17457031,2636.5,2636.4,2.4927]
[1724756775044,1.17457031,2636.6,2636.4,2.4927]
[1724756775245,1.17457031,2636.7,2636.5,0.07584885]
[1724756775555,1.17457031,2636.7,2636.6,6.28546]
[1724756775713,1.17457031,2636.9,2636.8,2.4927]
[1724756776067,1.56602045,2637.1,2636.8,3.12883022]
[1724756776068,1.17457031,2637.0,2636.8,3.12883022]
[1724756776238,1.17457031,2637.1,2636.8,3.12883022]
[1724756776775,1.17457031,2637.1,2636.9,0.07583674]
[1724756776931,1.17457031,2637.1,2636.9,0.38871976]
[1724756777129,1.17457031,2637.2,2637.0,2.4303]
[1724756777334,1.56602045,2637.3,2637.0,3.64578187]
[1724756777335,1.17457031,2637.3,2637.0,3.64578187]
[1724756777641,1.17457031,2637.4,2637.2,2.4303]
[1724756778214,1.17457031,2637.5,2637.2,2.4303]
[1724756778416,1.17457031,2637.4,2637.3,0.07582676]
[1724756778641,1.17457031,2637.5,2637.2,2.86312245]
[1724756778839,1.17457031,2637.5,2637.3,0.07582566]
[1724756781995,1.79916947,2636.7,2635.7,2.2648]
[1724756782195,3.79324,2636.3,2635.7,2.49128]
[1724756782700,1.1722746,2636.4,2635.8,3.79391]
[1724756782848,1.1722746,2636.4,2636.0,2.4228]
[1724756783147,5.3558028,2636.6,2636.1,0.07586079]
[1724756783148,1.1722746,2636.6,2636.1,0.07586079]
[1724756783668,5.3555128,2636.8,2636.2,2.4228]
[1724756783669,4.9648246,2636.8,2636.2,2.4228]
[1724756783875,1.1722746,2636.7,2636.2,2.4228]
[1724756784076,1.1722746,2636.7,2636.2,6.21611]
[1724756784384,8.74596048,2637.0,2636.4,2.4055]
[1724756784385,1.1722746,2636.9,2636.4,2.4055]
[1724756784591,1.1722746,2636.9,2636.4,6.19846]
[1724756784760,1.1722746,2637.0,2636.4,6.19846]
[1724756784972,3.79221,2637.0,2636.5,0.69237253]
[1724756785373,1.1722746,2637.1,2636.6,2.3584]
[1724756785676,1.1722746,2637.1,2636.7,0.30507725]
[1724756785875,4.9642046,2637.2,2636.7,0.30507725]
[1724756786222,8.7562346,2637.2,2636.8,2.4292]
[1724756786496,1.1722746,2637.2,2636.8,2.4292]
[1724756786705,3.79233,2636.9,2636.8,2.4292]
[1724756788799,4.9645446,2637.0,2636.8,2.4292]
[1724756788967,1.1722746,2637.0,2636.8,2.4292]
[1724756789168,1.1722746,2637.1,2636.8,2.4292]
[1724756789565,7.9642146,2637.2,2636.8,2.4292]
[1724756789907,4.9643246,2637.1,2636.8,2.4292]
[1724756790110,3.79205,2637.1,2636.8,2.4292]
[1724756790960,3.79205,2637.1,2635.8,3.79384]
[1724756790961,3.79283,2636.6,2636.5,2.2675]
[1724756791663,4.96529782,2636.8,2636.5,2.2675]
[1724756791995,1.17274782,2636.9,2636.5,2.49425]
[1724756792188,3.0,2636.9,2636.6,0.07584573]
[1724756792580,1.17274782,2637.0,2636.6,0.7121593]
[1724756792777,1.17274782,2637.1,2636.6,0.7121593]
[1724756792991,3.0,2637.1,2636.7,3.13202493]
[1724756793200,4.96466782,2637.2,2636.7,3.13202493]
[1724756793513,1.29989832,2637.6,2637.1,7.94103728]
[1724756793806,0.1271505,2637.6,2637.2,2.50792599]
[1724756794015,3.79147,2637.5,2637.2,2.4321]
[1724756794875,0.1271505,2637.6,2637.2,2.4321]
[1724756795305,3.9185705,2637.6,2637.2,2.4321]
[1724756795512,0.1271505,2637.6,2637.2,2.4321]
[1724756795672,0.1271505,2637.6,2637.2,2.67531]
[1724756796167,3.79168,2637.4,2637.2,2.4321]
[1724756796393,3.9185805,2637.6,2637.2,2.4321]
[1724756796592,0.1271505,2637.6,2637.2,2.4321]
[1724756797018,0.1271505,2637.6,2637.2,3.054512]
[1724756797295,3.9185005,2637.6,2637.2,3.054512]
[1724756797496,3.9185005,2637.6,2637.2,2.4321]
[1724756798023,1.6901833,2637.6,2637.4,4.14900728]
[1724756798343,0.1271505,2637.6,2637.5,2.79228337]
[1724756798541,0.1271505,2637.6,2637.5,2.3698]
[1724756799920,0.1271505,2637.6,2637.5,6.23707724]
[1724756800446,0.1271505,2637.6,2637.5,10.02853724]
[1724756800657,0.1271505,2637.6,2637.5,11.03139096]
[1724756802053,7.67677472,2638.8,2638.1,2.3629]
[1724756802203,17.7022828,2639.1,2638.2,3.86613037]
[1724756802204,3.78925,2639.1,2638.2,3.86613037]
[1724756802399,3.86509108,2639.1,2638.3,3.7903]
[1724756802661,3.86509108,2639.1,2638.4,2.3629]
[1724756802825,3.86509108,2639.1,2638.4,3.0397563]
[1724756803353,3.79003,2638.5,2638.4,2.3629]
[1724756803560,3.79019,2638.4,2637.7,2.4207]
[1724756803883,3.79019,2638.4,2637.8,0.24207]
[1724756803884,3.86616108,2638.3,2637.8,0.24207]
[1724756804154,3.86640108,2638.2,2637.8,0.24207]
[1724756804737,0.07584108,2638.2,2637.8,0.24207]
[1724756804966,7.28,2638.6,2638.0,2.2859]
[1724756805116,3.0,2638.5,2638.0,2.2859]
[1724756805559,3.0,2638.5,2638.1,0.07580194]
[1724756805719,3.0,2638.5,2638.1,0.61523119]
[1724756805913,3.0,2638.5,2638.0,6.07651]
[1724756805914,3.0,2638.5,2638.0,2.2859]
[1724756806230,6.86593108,2638.5,2638.0,2.2859]
[1724756806424,3.79018,2638.4,2638.0,2.2859]
[1724756806632,3.79038,2638.3,2638.0,2.2859]
[1724756808229,3.7906,2638.1,2638.0,2.2859]
[1724756808430,0.07584108,2638.2,2637.4,2.361]
[1724756808646,3.79134,2637.6,2637.4,2.361]
[1724756808940,3.7912,2637.7,2637.4,2.361]
[1724756809293,11.07082,2638.0,2637.4,2.361]
[1724756809576,8.0390989,2638.2,2637.5,0.2361]
[1724756809577,6.79049,2638.2,2637.5,0.2361]
[1724756809926,3.0,2638.2,2637.6,3.79128]
[1724756810237,6.86620108,2638.3,2637.7,2.3132]
[1724756810547,7.58106,2638.2,2637.7,2.3132]
[1724756810741,6.79068,2638.1,2637.7,2.3132]
[1724756810943,3.0,2638.1,2637.7,2.3132]
[1724756811545,3.79087,2638.0,2637.7,2.3132]
[1724756811827,3.0,2638.1,2637.7,2.3132]
[1724756812228,3.0,2638.1,2637.8,0.07581277]
[1724756812427,4.96291782,2638.4,2637.7,2.93123828]
[1724756812428,3.0,2638.3,2637.7,2.3132]
[1724756812670,3.79066,2638.1,2637.7,2.3132]
[1724756812841,6.86628108,2638.3,2637.7,2.3132]
[1724756813048,3.0,2638.3,2637.8,0.07581179]
[1724756813232,3.79012,2638.5,2637.9,2.3616]
[1724756813432,14.30081431,2638.8,2638.2,3.79043]
[1724756813433,1.17274782,2638.8,2638.2,3.79043]
[1724756813676,8.75183782,2638.9,2638.3,0.07579169]
[1724756813873,3.78953,2638.9,2638.3,0.07579169]
[1724756814048,7.57908,2638.9,2638.3,0.07579169]
[1724756814248,3.78953,2638.9,2638.3,0.07579169]
[1724756814444,3.78953,2638.9,2638.4,2.442]
[1724756814640,8.45274782,2639.0,2638.5,0.07579149]
[1724756814854,7.28,2639.0,2638.5,0.07579149]
[1724756815083,7.28,2639.0,2638.4,2.442]
[1724756815084,3.78953,2638.9,2638.4,2.442]
[1724756815308,7.28,2639.0,2638.4,3.444246]
[1724756815871,3.78998,2638.6,2638.4,3.444246]
[1724756816088,3.78998,2638.6,2638.4,2.442]
[1724756816608,3.78974,2638.8,2638.4,2.442]
[1724756817074,3.7897,2638.8,2638.4,2.442]
[1724756819465,3.78989,2638.6,2638.4,2.442]
[1724756819665,0.07584108,2638.7,2638.4,2.442]
[1724756819666,8.0381289,2638.9,2638.4,2.442]
[1724756819862,3.78969,2638.8,2638.4,2.442]
[1724756820164,0.07584108,2638.8,2638.4,2.442]
[1724756820493,11.75183782,2638.9,2638.4,2.442]
[1724756820899,7.96228782,2638.9,2638.4,2.442]
[1724756821074,11.75183782,2638.9,2638.4,2.442]
[1724756821584,3.78964,2638.8,2638.4,2.442]
[1724756821760,3.78975,2638.7,2638.4,2.442]
[1724756822462,11.75187782,2638.9,2638.4,2.442]
[1724756822711,3.78963,2638.8,2638.4,2.442]
[1724756826011,3.0,2638.9,2638.5,0.07579042]
[1724756826211,3.0,2638.9,2638.6,2.4315]
[1724756826813,3.0,2638.9,2638.7,0.075787]
[1724756826974,3.0,2638.9,2638.6,2.4315]
[1724756827168,3.78968,2638.8,2638.6,2.4315]
[1724756827394,7.57948,2638.7,2638.6,2.4315]
[1724756828018,3.78974,2638.7,2638.6,2.4315]
[1724756828639,3.7903,2638.4,2637.9,2.286]
[1724756828779,3.7902,2638.4,2637.9,2.286]
[1724756828980,3.79054,2638.2,2637.9,2.286]
[1724756829274,7.5815,2638.0,2637.9,2.286]
[1724756829493,3.79075,2638.0,2637.9,2.286]
[1724756830025,7.58136,2638.1,2637.9,2.286]
[1724756830234,3.79075,2638.0,2637.9,2.286]
[1724756830791,4.96338782,2638.1,2637.9,2.286]
[1724756831090,3.79064,2638.1,2637.9,2.286]
[1724756832430,4.96308782,2638.3,2637.9,2.5146]
[1724756832623,8.75348782,2638.3,2637.9,2.286]
[1724756832827,4.96308782,2638.3,2637.9,2.286]
[1724756833330,1.17274782,2638.2,2637.9,2.286]
[1724756834119,1.17274782,2638.2,2638.0,0.07581093]
[1724756834345,2.73578062,2638.4,2638.1,6.12871]
[1724756834524,1.17274782,2638.5,2638.3,2.3382]
[1724756834828,1.5630328,2638.7,2638.3,2.3382]
[1724756834829,1.17274782,2638.7,2638.3,2.3382]
[1724756835207,1.17274782,2638.6,2638.3,2.41399512]
[1724756835401,1.17274782,2638.6,2638.3,3.01993704]
[1724756836498,1.17274782,2638.5,2638.3,2.3382]
[1724756837218,1.17274782,2638.4,2638.3,2.3382]
[1724756838498,1.5630328,2638.6,2638.3,2.3382]
[1724756838499,1.17274782,2638.5,2638.3,2.3382]
[1724756838699,1.17274782,2638.5,2638.4,0.62044378]
[1724756838940,1.17274782,2638.5,2638.4,6.89891378]
[1724756839101,1.17274782,2638.5,2638.4,6.35424425]
[1724756839302,1.17274782,2638.5,2638.4,10.14443179]
[1724756839500,2.74726719,2639.0,2638.6,6.20838]
[1724756839501,1.17274782,2638.9,2638.6,6.20838]
[1724756839748,1.17274782,2638.9,2638.6,2.4185]
[1724756839950,1.17274782,2638.7,2638.6,2.4185]
[1724756840266,5.3527728,2638.7,2638.6,2.4185]
[1724756840413,9.61412674,2638.7,2638.6,2.4185]
[1724756840611,7.57948,2638.7,2638.6,2.4185]
[1724756840833,3.79063,2638.1,2637.8,2.4206]
[1724756841026,1.17889833,2637.9,2637.8,2.4206]
[1724756841320,1.57186445,2637.9,2637.8,2.66266]
[1724756841644,1.1791094,2637.9,2637.8,2.66266]
[1724756842352,1.57186445,2638.0,2637.2,2.4124]
[1724756842353,3.79156,2637.5,2637.2,2.4124]
[1724756842564,1.17913149,2637.3,2637.2,2.4124]
[1724756842865,1.57217532,2637.4,2637.2,2.4124]
[1724756842866,5.83257079,2637.4,2637.2,2.4124]
[1724756843016,5.83257079,2637.4,2636.4,0.0659985]
[1724756843017,3.79175,2637.3,2636.5,2.4124]
[1724756843212,3.79175,2637.3,2636.7,0.379269]
[1724756843213,1.17903227,2636.9,2636.7,0.379269]
[1724756843413,1.57204302,2637.1,2636.8,2.3311]
[1724756843414,1.17903227,2637.0,2636.8,2.3311]
[1724756843717,1.17903227,2637.1,2636.8,2.3311]
[1724756844262,1.17903227,2637.1,2636.8,2.943474]
[1724756844462,1.17903227,2637.1,2636.8,2.2811]
[1724756844754,1.17903227,2636.9,2636.8,2.2811]
[1724756845120,1.57204302,2637.0,2636.8,2.2811]
[1724756845331,1.17774285,2636.9,2636.8,2.2811]
[1724756846375,1.17774285,2637.0,2636.8,2.2811]
[1724756847170,1.17774285,2637.1,2636.8,2.888477]
[1724756847328,1.17774285,2637.1,2636.8,2.2811]
[1724756847758,1.17774285,2637.2,2636.8,2.2811]
[1724756847966,1.17774285,2637.1,2636.8,2.2811]
[1724756848667,4.96978285,2637.1,2636.8,2.2811]
[1724756849254,8.76193285,2637.1,2636.8,2.2811]
[1724756849460,4.97007285,2636.9,2636.8,2.2811]
[1724756849630,3.86817108,2636.9,2636.8,2.2811]
[1724756849840,5.4402141,2636.9,2636.8,2.2811]
[1724756850579,5.4402141,2636.9,2636.2,6.24746]
[1724756850869,1.17558358,2636.8,2636.3,1.004083]
[1724756851369,2.82346768,2636.9,2636.3,4.797263]
[1724756851572,5.04383466,2636.9,2636.3,4.797263]
[1724756851866,1.25142466,2636.9,2636.3,4.797263]
[1724756852235,0.07584108,2636.9,2636.3,4.797263]
[1724756852656,1.25142466,2636.9,2636.3,4.797263]
[1724756853074,1.25142466,2636.9,2636.4,3.86887263]
[1724756853257,5.36424302,2637.0,2636.5,3.79288]
[1724756853258,1.25142466,2637.0,2636.5,3.79288]
[1724756853684,0.07584108,2637.0,2636.4,0.7251463]
[1724756853888,0.07584108,2637.0,2636.5,2.4092]
[1724756854183,0.07584108,2637.0,2636.5,6.2021]
[1724756854388,0.07584108,2637.0,2636.5,2.4092]
[1724756854544,1.25142466,2637.1,2636.5,7.28165989]
[1724756854739,3.7922,2637.0,2636.5,2.4092]
[1724756854971,1.25142466,2637.1,2636.5,2.4092]
[1724756855180,5.04350466,2637.1,2636.5,6.27792888]
[1724756855480,1.15058358,2637.2,2636.7,3.79255]
[1724756855680,3.07584108,2637.3,2636.7,3.86839225]
[1724756855890,3.07584108,2637.3,2636.7,4.94577965]
[1724756856184,0.07584108,2637.2,2636.7,1.0773874]
[1724756856392,6.79183,2637.3,2636.7,4.8699874]
[1724756856393,3.07584108,2637.3,2636.7,4.8699874]
[1724756856571,6.86760108,2637.3,2636.8,0.48700274]
[1724756856760,0.07584108,2637.2,2636.5,3.03699289]
[1724756856946,0.07584108,2637.2,2636.5,2.4092]
[1724756857280,0.07584108,2637.2,2636.6,3.79274]
[1724756857669,10.58366,2637.3,2636.6,3.79274]
[1724756857670,3.0,2637.3,2636.6,3.86851322]
[1724756857844,3.79181,2637.3,2636.7,2.2842]
[1724756858043,3.86765108,2637.3,2636.7,2.2842]
[1724756858239,0.07584108,2637.2,2636.7,2.2842]
[1724756858677,3.86765108,2637.3,2636.7,2.2842]
[1724756859248,0.07584108,2637.3,2636.7,6.8230465]
[1724756859784,0.07584108,2637.3,2636.8,3.79246]
[1724756860145,6.79162,2637.4,2636.9,2.2842]
[1724756860347,7.28,2637.5,2636.9,2.2842]
[1724756860549,3.79164,2637.4,2636.9,2.2842]
[1724756860749,3.79186,2637.3,2636.9,2.2842]
[1724756860985,3.86748108,2637.4,2636.9,2.2842]
[1724756860986,3.79164,2637.4,2636.9,2.2842]
[1724756861280,3.86748108,2637.4,2636.9,2.57966641]
[1724756862294,3.79184,2637.3,2636.9,2.2842]
[1724756863689,0.07584108,2637.4,2636.9,2.2842]
[1724756864013,3.79162,2637.4,2636.9,2.2842]
[1724756864175,0.07584108,2637.4,2636.9,2.2842]
[1724756864389,14.86312,2637.5,2637.0,0.69108109]
[1724756864390,7.28,2637.5,2637.0,0.69108109]
[1724756864551,7.28,2637.5,2637.1,2.4734]
[1724756864886,14.31895946,2637.8,2637.3,2.4734]
[1724756864887,1.56959157,2637.8,2637.3,2.4734]
[1724756865097,1.56959157,2637.8,2637.7,13.16344513]
[1724756865098,0.39691644,2637.8,2637.7,13.16344513]
[1724756865304,3.7902,2638.4,2637.8,2.4734]
[1724756865613,1.17267513,2638.1,2636.9,5.58108513]
[1724756865907,1.17267513,2638.1,2637.6,2.4124]
[1724756865908,3.79062,2638.1,2637.6,2.4124]
[1724756866259,3.79062,2638.1,2637.6,2.48821535]
[1724756866462,1.17267513,2638.2,2637.6,2.48821535]
[1724756866765,1.17267513,2638.2,2637.6,6.27952535]
[1724756866766,4.96319513,2638.2,2637.6,6.27952535]
[1724756866966,3.79041,2638.3,2637.6,6.27952535]
[1724756866967,1.17267513,2638.3,2638.1,3.10768513]
[1724756867171,2.34696512,2638.8,2638.1,3.10768513]
[1724756867172,4.96221513,2638.9,2638.3,2.4972]
[1724756867401,4.96221513,2638.9,2638.4,3.10768513]
[1724756867402,1.17267513,2638.8,2638.4,3.10768513]
[1724756867572,1.17267513,2638.9,2638.4,3.18345595]
[1724756867775,1.17267513,2639.0,2638.5,6.36294323]
[1724756867976,1.17267513,2638.9,2638.5,2.57299323]
[1724756868301,1.17267513,2639.0,2638.5,2.57299323]
[1724756868674,1.17267513,2639.0,2638.5,6.36302323]
[1724756870401,1.17267513,2639.0,2638.5,4.00200189]
[1724756870578,3.86530108,2638.9,2638.5,2.4972]